[Event "*** SCC Grand Prix: Titled Tuesday Blitz"]
[Site "Chess.com"]
[Date "2020.09.29"]
[Round "6"]
[White "KaspMagAlpha"]
[Black "pedro_nascimento85"]
[Result "1-0"]
[WhiteElo "2249"]
[BlackElo "2005"]
[TimeControl "180+1"]
[EndTime "11:02:51 PDT"]
[Termination "KaspMagAlpha won by resignation"]

1. d4 {[%clk 0:01:08]} 1... d5 {[%clk 0:02:58]} 2. c4 {[%clk 0:01:06.8]} 2... e6
{[%clk 0:02:58.1]} 3. Nf3 {[%clk 0:01:05.2]} 3... Nf6 {[%clk 0:02:57.6]} 4. g3
{[%clk 0:01:05]} 4... Be7 {[%clk 0:02:56.6]} 5. Bg2 {[%clk 0:01:03.4]} 5... O-O
{[%clk 0:02:56.5]} 6. O-O {[%clk 0:01:02.5]} 6... dxc4 {[%clk 0:02:47.9]} 7. a4
{[%clk 0:00:58.5]} 7... c5 {[%clk 0:02:41.6]} 8. dxc5 {[%clk 0:00:54.3]} 8...
Qxd1 {[%clk 0:02:40.6]} 9. Rxd1 {[%clk 0:00:53]} 9... Bxc5 {[%clk 0:02:41.1]}
10. Na3 {[%clk 0:00:51.9]} 10... Nc6 {[%clk 0:02:38]} 11. Nxc4 {[%clk
0:00:51.4]} 11... Rb8 {[%clk 0:02:29.8]} 12. Bf4 {[%clk 0:00:50.8]} 12... Ra8
{[%clk 0:02:27.5]} 13. Nfe5 {[%clk 0:00:49.3]} 13... Nxe5 {[%clk 0:02:22.3]} 14.
Bxe5 {[%clk 0:00:49.2]} 14... Nd7 {[%clk 0:02:19.6]} 15. Bd6 {[%clk 0:00:48.8]}
15... Bxd6 {[%clk 0:02:17.9]} 16. Nxd6 {[%clk 0:00:47.8]} 16... Nc5 {[%clk
0:02:16.3]} 17. b4 {[%clk 0:00:47.6]} 17... Na6 {[%clk 0:02:11.2]} 18. Nxc8
{[%clk 0:00:46.6]} 18... Rfxc8 {[%clk 0:02:03.6]} 19. Bxb7 {[%clk 0:00:45.6]}
19... Nc7 {[%clk 0:02:04.1]} 20. Bxc8 {[%clk 0:00:44.4]} 20... Rxc8 {[%clk
0:02:03.8]} 21. Rac1 {[%clk 0:00:45.3]} 1-0

[Event "*** SCC Grand Prix: Titled Tuesday Blitz"]
[Site "Chess.com"]
[Date "2020.09.29"]
[Round "6"]
[White "Shuvalov"]
[Black "frederiksvane"]
[Result "0-1"]
[WhiteElo "2430"]
[BlackElo "2676"]
[TimeControl "180+1"]
[EndTime "11:02:53 PDT"]
[Termination "frederiksvane won by checkmate"]

1. Nf3 {[%clk 0:02:55]} 1... Nf6 {[%clk 0:02:59.4]} 2. c4 {[%clk 0:02:54.5]}
2... c5 {[%clk 0:02:56.3]} 3. g3 {[%clk 0:02:54.2]} 3... Nc6 {[%clk 0:02:56.4]}
4. Bg2 {[%clk 0:02:54.8]} 4... g6 {[%clk 0:02:57]} 5. O-O {[%clk 0:02:54.7]}
5... Bg7 {[%clk 0:02:57.6]} 6. Nc3 {[%clk 0:02:55.2]} 6... d6 {[%clk 0:02:57.5]}
7. d4 {[%clk 0:02:54.9]} 7... cxd4 {[%clk 0:02:57.5]} 8. Nxd4 {[%clk 0:02:55.6]}
8... Bd7 {[%clk 0:02:58.1]} 9. Nc2 {[%clk 0:02:50.3]} 9... h5 {[%clk 0:02:56.8]}
10. Bg5 {[%clk 0:02:48.7]} 10... Nh7 {[%clk 0:02:53.7]} 11. Be3 {[%clk
0:02:43.3]} 11... h4 {[%clk 0:02:51.5]} 12. gxh4 {[%clk 0:02:40.6]} 12... Nf8
{[%clk 0:02:38.1]} 13. c5 {[%clk 0:02:31.7]} 13... dxc5 {[%clk 0:02:35.6]} 14.
Bxc5 {[%clk 0:02:30.5]} 14... Rxh4 {[%clk 0:02:33.8]} 15. Ne3 {[%clk 0:02:20.5]}
15... Qb8 {[%clk 0:02:29.2]} 16. f4 {[%clk 0:02:15.2]} 16... Rxf4 {[%clk
0:02:28.1]} 17. Rxf4 {[%clk 0:02:07.7]} 17... Qxf4 {[%clk 0:02:29]} 18. Ned5
{[%clk 0:02:06.9]} 18... Qb8 {[%clk 0:02:28.6]} 19. Nb5 {[%clk 0:02:02.9]} 19...
Ne6 {[%clk 0:02:28.7]} 20. Nxe7 {[%clk 0:01:41.8]} 20... Nxe7 {[%clk 0:02:17.8]}
21. Nd6+ {[%clk 0:01:41.8]} 21... Kf8 {[%clk 0:02:16.3]} 22. Nxb7 {[%clk
0:01:36]} 22... Nxc5 {[%clk 0:02:05.2]} 23. Nxc5 {[%clk 0:01:35.7]} 23... Qb6
{[%clk 0:02:05.4]} 24. b4 {[%clk 0:01:34.3]} 24... Bxa1 {[%clk 0:01:45.5]} 25.
Qxa1 {[%clk 0:01:30.9]} 25... Rd8 {[%clk 0:01:40.1]} 26. Qh8+ {[%clk 0:01:19.8]}
26... Ng8 {[%clk 0:01:40.1]} 27. Kh1 {[%clk 0:01:17.8]} 27... Bc6 {[%clk
0:01:36.1]} 28. Qh4 {[%clk 0:01:11.5]} 28... Rd1+ {[%clk 0:01:35.5]} 29. Qe1
{[%clk 0:01:02.4]} 29... Rxe1# {[%clk 0:01:36.4]} 0-1

[Event "*** SCC Grand Prix: Titled Tuesday Blitz"]
[Site "Chess.com"]
[Date "2020.09.29"]
[Round "6"]
[White "Khnykin_Nikolay"]
[Black "chessmachine14"]
[Result "0-1"]
[WhiteElo "2083"]
[BlackElo "2287"]
[TimeControl "180+1"]
[EndTime "11:02:55 PDT"]
[Termination "chessmachine14 won by checkmate"]

1. e4 {[%clk 0:03:00.9]} 1... c5 {[%clk 0:02:58.8]} 2. d4 {[%clk 0:03:00]} 2...
cxd4 {[%clk 0:02:58.1]} 3. c3 {[%clk 0:03:00.5]} 3... Nf6 {[%clk 0:02:55.2]} 4.
Bd3 {[%clk 0:02:59.1]} 4... dxc3 {[%clk 0:02:52.1]} 5. Nxc3 {[%clk 0:03:00]}
5... d6 {[%clk 0:02:51.8]} 6. Bc4 {[%clk 0:02:58.8]} 6... Nc6 {[%clk 0:02:47]}
7. Nf3 {[%clk 0:02:58.8]} 7... e6 {[%clk 0:02:46.9]} 8. Bg5 {[%clk 0:02:57.2]}
8... Be7 {[%clk 0:02:46.7]} 9. O-O {[%clk 0:02:55.7]} 9... O-O {[%clk
0:02:46.6]} 10. Nb5 {[%clk 0:02:49.2]} 10... a6 {[%clk 0:02:41.2]} 11. Bxf6
{[%clk 0:02:48.5]} 11... Bxf6 {[%clk 0:02:09.7]} 12. Nxd6 {[%clk 0:02:43.7]}
12... b5 {[%clk 0:01:46.6]} 13. Bb3 {[%clk 0:02:35.8]} 13... Bxb2 {[%clk
0:01:45.7]} 14. Rb1 {[%clk 0:02:33.1]} 14... Ba3 {[%clk 0:01:41.6]} 15. Nxc8
{[%clk 0:02:20.7]} 15... Rxc8 {[%clk 0:01:42.5]} 16. Qe2 {[%clk 0:02:18.1]}
16... Nd4 {[%clk 0:01:15.9]} 17. Qe3 {[%clk 0:02:14]} 17... Nxf3+ {[%clk
0:01:10.9]} 18. Qxf3 {[%clk 0:02:07.9]} 18... a5 {[%clk 0:01:10.9]} 19. Bxe6
{[%clk 0:02:05.4]} 19... fxe6 {[%clk 0:00:53.3]} 20. Qxa3 {[%clk 0:02:03.8]}
20... Rc2 {[%clk 0:00:53.2]} 21. Qb3 {[%clk 0:02:01.5]} 21... Qd2 {[%clk
0:00:48]} 22. Qxe6+ {[%clk 0:02:00.5]} 22... Kh8 {[%clk 0:00:47.8]} 23. Rxb5
{[%clk 0:02:00.1]} 23... Qxf2+ {[%clk 0:00:44.8]} 24. Rxf2 {[%clk 0:01:56]}
24... Rc1+ {[%clk 0:00:36.6]} 25. Rf1 {[%clk 0:01:55.6]} 25... Rcxf1# {[%clk
0:00:36]} 0-1

[Event "*** SCC Grand Prix: Titled Tuesday Blitz"]
[Site "Chess.com"]
[Date "2020.09.29"]
[Round "6"]
[White "GM_Levan_Pantsulaia"]
[Black "m_ezat"]
[Result "1-0"]
[WhiteElo "2845"]
[BlackElo "2629"]
[TimeControl "180+1"]
[EndTime "11:03:00 PDT"]
[Termination "GM_Levan_Pantsulaia won by resignation"]

1. Nf3 {[%clk 0:03:00.9]} 1... Nf6 {[%clk 0:02:59.6]} 2. g3 {[%clk 0:03:01.2]}
2... g6 {[%clk 0:02:59.9]} 3. b3 {[%clk 0:03:00.3]} 3... Bg7 {[%clk 0:03:00.2]}
4. Bb2 {[%clk 0:03:01.2]} 4... O-O {[%clk 0:03:00.5]} 5. Bg2 {[%clk 0:03:01.6]}
5... d6 {[%clk 0:03:01]} 6. d4 {[%clk 0:03:01.7]} 6... e5 {[%clk 0:03:00.9]} 7.
dxe5 {[%clk 0:03:01.5]} 7... Ng4 {[%clk 0:03:01.2]} 8. Nc3 {[%clk 0:03:01.4]}
8... Nxe5 {[%clk 0:02:57.1]} 9. Nxe5 {[%clk 0:02:59.1]} 9... Bxe5 {[%clk
0:02:56.4]} 10. Qd2 {[%clk 0:02:58.4]} 10... Nc6 {[%clk 0:02:51.5]} 11. h4
{[%clk 0:02:56.8]} 11... h5 {[%clk 0:02:34.9]} 12. O-O-O {[%clk 0:02:56.5]}
12... a5 {[%clk 0:02:16]} 13. f4 {[%clk 0:02:36.9]} 13... Bg7 {[%clk 0:02:12.6]}
14. Nd5 {[%clk 0:02:26.3]} 14... Bxb2+ {[%clk 0:02:10.6]} 15. Kxb2 {[%clk
0:02:27.1]} 15... Be6 {[%clk 0:01:56.1]} 16. Qc3 {[%clk 0:02:20.6]} 16... f5
{[%clk 0:01:42.2]} 17. e4 {[%clk 0:02:17.8]} 17... a4 {[%clk 0:01:33.1]} 18.
exf5 {[%clk 0:02:17.8]} 18... Bxf5 {[%clk 0:01:30.3]} 19. Rhe1 {[%clk
0:02:15.4]} 19... axb3 {[%clk 0:01:20.5]} 20. axb3 {[%clk 0:02:14.7]} 20... Kh7
{[%clk 0:01:20.2]} 21. Re3 {[%clk 0:02:05.6]} 21... Kh6 {[%clk 0:01:15.5]} 22.
Rde1 {[%clk 0:02:03.6]} 22... Qd7 {[%clk 0:01:13.3]} 23. Re7 {[%clk 0:01:58.9]}
23... Nxe7 {[%clk 0:01:07.1]} 24. Rxe7 {[%clk 0:01:58.3]} 24... Qxe7 {[%clk
0:01:02.5]} 25. Nxe7 {[%clk 0:01:59.2]} 25... Bg4 {[%clk 0:01:01.8]} 26. Qxc7
{[%clk 0:01:54.6]} 26... Rf7 {[%clk 0:01:00.3]} 27. Qxd6 {[%clk 0:01:54.2]}
27... Bf5 {[%clk 0:00:58.4]} 28. Nxf5+ {[%clk 0:01:52]} 28... Rxf5 {[%clk
0:00:58.4]} 29. Be4 {[%clk 0:01:51.8]} 1-0

[Event "*** SCC Grand Prix: Titled Tuesday Blitz"]
[Site "Chess.com"]
[Date "2020.09.29"]
[Round "6"]
[White "ViktoriyaTarasova"]
[Black "ferdipy"]
[Result "1-0"]
[WhiteElo "2284"]
[BlackElo "2355"]
[TimeControl "180+1"]
[EndTime "11:03:09 PDT"]
[Termination "ViktoriyaTarasova won by resignation"]

1. d4 {[%clk 0:03:00.9]} 1... e5 {[%clk 0:02:59.9]} 2. dxe5 {[%clk 0:02:59.1]}
2... d6 {[%clk 0:03:00.3]} 3. exd6 {[%clk 0:02:58.3]} 3... Bxd6 {[%clk 0:03:01]}
4. g3 {[%clk 0:02:58.5]} 4... Nc6 {[%clk 0:03:00.4]} 5. Bg2 {[%clk 0:02:59.1]}
5... Bf5 {[%clk 0:03:00.4]} 6. c3 {[%clk 0:02:56.6]} 6... Qe7 {[%clk 0:03:00.9]}
7. Qa4 {[%clk 0:02:55.7]} 7... Bd7 {[%clk 0:02:53.8]} 8. Qe4 {[%clk 0:02:52.4]}
8... Be6 {[%clk 0:02:52.1]} 9. Nf3 {[%clk 0:02:44]} 9... Nf6 {[%clk 0:02:52.5]}
10. Qc2 {[%clk 0:02:44.4]} 10... O-O-O {[%clk 0:02:51.5]} 11. O-O {[%clk
0:02:44.9]} 11... h6 {[%clk 0:02:50]} 12. b4 {[%clk 0:02:44.5]} 12... g5 {[%clk
0:02:48.9]} 13. Bb2 {[%clk 0:02:36.6]} 13... Bc4 {[%clk 0:02:41.1]} 14. Re1
{[%clk 0:02:34.6]} 14... Ne4 {[%clk 0:02:36]} 15. Nbd2 {[%clk 0:02:30]} 15...
Nxd2 {[%clk 0:02:35.7]} 16. Nxd2 {[%clk 0:02:29]} 16... Be6 {[%clk 0:02:34.5]}
17. b5 {[%clk 0:02:22.8]} 17... Ne5 {[%clk 0:02:30.1]} 18. c4 {[%clk 0:02:22.3]}
18... f6 {[%clk 0:02:24.4]} 19. Qe4 {[%clk 0:02:10.5]} 19... c5 {[%clk
0:02:10.2]} 20. f4 {[%clk 0:01:45.7]} 20... f5 {[%clk 0:02:00.6]} 21. Qxb7+
{[%clk 0:01:32.7]} 21... Qxb7 {[%clk 0:01:59.6]} 22. Bxb7+ {[%clk 0:01:33.3]}
22... Kxb7 {[%clk 0:02:00.5]} 23. fxe5 {[%clk 0:01:24.7]} 23... Bc7 {[%clk
0:01:59.5]} 24. Nb3 {[%clk 0:01:20.2]} 24... Bb6 {[%clk 0:01:53.2]} 25. Rac1
{[%clk 0:01:15.6]} 25... Rhe8 {[%clk 0:01:49.7]} 26. a4 {[%clk 0:01:14.1]} 26...
a5 {[%clk 0:01:47]} 27. bxa6+ {[%clk 0:01:10]} 27... Kxa6 {[%clk 0:01:47.9]} 28.
a5 {[%clk 0:01:10.4]} 28... Ka7 {[%clk 0:01:48]} 29. axb6+ {[%clk 0:01:09.9]}
29... Kxb6 {[%clk 0:01:48.9]} 30. Ba3 {[%clk 0:01:04.9]} 30... Rc8 {[%clk
0:01:46.1]} 31. Red1 {[%clk 0:00:58.8]} 31... Kc6 {[%clk 0:01:44.1]} 32. Rd6+
{[%clk 0:00:58.3]} 32... Kb7 {[%clk 0:01:42.2]} 33. Nxc5+ {[%clk 0:00:58.2]}
33... Ka7 {[%clk 0:01:40.5]} 1-0

[Event "*** SCC Grand Prix: Titled Tuesday Blitz"]
[Site "Chess.com"]
[Date "2020.09.29"]
[Round "6"]
[White "dosto07"]
[Black "chessmadara"]
[Result "1/2-1/2"]
[WhiteElo "2299"]
[BlackElo "2133"]
[TimeControl "180+1"]
[EndTime "11:03:25 PDT"]
[Termination "Game drawn by agreement"]

1. e4 {[%clk 0:02:57.2]} 1... c5 {[%clk 0:02:59.9]} 2. Nf3 {[%clk 0:02:56]} 2...
Nc6 {[%clk 0:02:59.7]} 3. Bb5 {[%clk 0:02:54.8]} 3... g6 {[%clk 0:02:59.1]} 4.
O-O {[%clk 0:02:53.9]} 4... Bg7 {[%clk 0:02:57.5]} 5. c3 {[%clk 0:02:54.1]} 5...
Nf6 {[%clk 0:02:40.4]} 6. Re1 {[%clk 0:02:53.7]} 6... O-O {[%clk 0:02:37.6]} 7.
e5 {[%clk 0:02:54]} 7... Nd5 {[%clk 0:02:31.5]} 8. d4 {[%clk 0:02:54.9]} 8...
cxd4 {[%clk 0:02:24.4]} 9. cxd4 {[%clk 0:02:54.5]} 9... d6 {[%clk 0:02:21.7]}
10. Nc3 {[%clk 0:02:54.3]} 10... Nxc3 {[%clk 0:02:19.6]} 11. bxc3 {[%clk
0:02:53.2]} 11... Qb6 {[%clk 0:02:12.6]} 12. Bxc6 {[%clk 0:02:31.1]} 12... Qxc6
{[%clk 0:02:11.7]} 13. Bg5 {[%clk 0:02:24.7]} 13... Re8 {[%clk 0:02:03.7]} 14.
exd6 {[%clk 0:02:07.7]} 14... Qxd6 {[%clk 0:02:03.5]} 15. Qd2 {[%clk 0:02:03.8]}
15... Bf5 {[%clk 0:02:00.2]} 16. h3 {[%clk 0:01:53.7]} 16... Rac8 {[%clk
0:01:58.4]} 17. Rac1 {[%clk 0:01:47]} 17... b5 {[%clk 0:01:52.6]} 18. Bh6 {[%clk
0:01:45.5]} 18... Qa3 {[%clk 0:01:43.1]} 19. Bxg7 {[%clk 0:01:43.5]} 19... Kxg7
{[%clk 0:01:44]} 20. d5 {[%clk 0:01:39.7]} 20... Rc4 {[%clk 0:01:29.5]} 21. Nd4
{[%clk 0:01:34.1]} 21... Bd7 {[%clk 0:01:28.7]} 22. h4 {[%clk 0:01:16.7]} 22...
b4 {[%clk 0:01:22.4]} 23. cxb4 {[%clk 0:01:05.2]} 23... Qxb4 {[%clk 0:01:21.4]}
24. Qxb4 {[%clk 0:00:58.6]} 24... Rxb4 {[%clk 0:01:21.1]} 25. Nf3 {[%clk
0:00:51.1]} 25... Bg4 {[%clk 0:01:16.5]} 1/2-1/2

[Event "*** SCC Grand Prix: Titled Tuesday Blitz"]
[Site "Chess.com"]
[Date "2020.09.29"]
[Round "6"]
[White "Ziachess74"]
[Black "gui_borba"]
[Result "1-0"]
[WhiteElo "2644"]
[BlackElo "2429"]
[TimeControl "180+1"]
[EndTime "11:03:29 PDT"]
[Termination "Ziachess74 won by resignation"]

1. d4 {[%clk 0:03:00.9]} 1... Nf6 {[%clk 0:02:59.8]} 2. c4 {[%clk 0:02:59.7]}
2... e6 {[%clk 0:03:00.2]} 3. Nc3 {[%clk 0:02:59.3]} 3... d5 {[%clk 0:03:01.1]}
4. cxd5 {[%clk 0:02:57.9]} 4... exd5 {[%clk 0:03:02]} 5. Bg5 {[%clk 0:02:57.6]}
5... c6 {[%clk 0:03:02.5]} 6. e3 {[%clk 0:02:57.8]} 6... Bd6 {[%clk 0:03:02.5]}
7. Bd3 {[%clk 0:02:47]} 7... O-O {[%clk 0:03:02.5]} 8. Qc2 {[%clk 0:02:41.1]}
8... h6 {[%clk 0:03:02.5]} 9. Bh4 {[%clk 0:02:39]} 9... a5 {[%clk 0:03:02.7]}
10. Nf3 {[%clk 0:02:32.6]} 10... Na6 {[%clk 0:03:03]} 11. a3 {[%clk 0:02:32.1]}
11... Nc7 {[%clk 0:03:03]} 12. O-O {[%clk 0:02:27.9]} 12... Ne6 {[%clk
0:02:59.3]} 13. Ne5 {[%clk 0:02:24.9]} 13... Be7 {[%clk 0:02:46.5]} 14. f4
{[%clk 0:02:19.6]} 14... c5 {[%clk 0:02:32]} 15. dxc5 {[%clk 0:01:44.3]} 15...
d4 {[%clk 0:02:24.6]} 16. Bxf6 {[%clk 0:01:27.8]} 16... gxf6 {[%clk 0:02:09.1]}
17. Ng4 {[%clk 0:01:11.5]} 17... dxc3 {[%clk 0:01:56.4]} 18. Nxh6+ {[%clk
0:01:10.4]} 18... Kh8 {[%clk 0:01:55]} 19. Qe2 {[%clk 0:00:55.9]} 19... Qd5
{[%clk 0:01:29.2]} 20. Nf5 {[%clk 0:00:49.7]} 20... cxb2 {[%clk 0:01:09.6]} 21.
Qh5+ {[%clk 0:00:44.4]} 1-0

[Event "*** SCC Grand Prix: Titled Tuesday Blitz"]
[Site "Chess.com"]
[Date "2020.09.29"]
[Round "6"]
[White "davidkalashian"]
[Black "Nikithebest"]
[Result "1-0"]
[WhiteElo "2582"]
[BlackElo "2424"]
[TimeControl "180+1"]
[EndTime "11:03:40 PDT"]
[Termination "davidkalashian won by resignation"]

1. d4 {[%clk 0:03:00.9]} 1... Nf6 {[%clk 0:02:59.2]} 2. c4 {[%clk 0:03:00.4]}
2... c5 {[%clk 0:02:59.4]} 3. Nf3 {[%clk 0:03:00]} 3... cxd4 {[%clk 0:02:59.1]}
4. Nxd4 {[%clk 0:03:00.9]} 4... e5 {[%clk 0:02:59.6]} 5. Nb5 {[%clk 0:03:00.5]}
5... d5 {[%clk 0:03:00.2]} 6. cxd5 {[%clk 0:03:00.6]} 6... Bc5 {[%clk
0:03:00.8]} 7. N5c3 {[%clk 0:02:58.2]} 7... O-O {[%clk 0:03:00.7]} 8. g3 {[%clk
0:02:58.4]} 8... e4 {[%clk 0:02:51.6]} 9. Bg2 {[%clk 0:02:57.2]} 9... Re8 {[%clk
0:02:26]} 10. O-O {[%clk 0:02:56.3]} 10... Bf5 {[%clk 0:02:21.2]} 11. Be3 {[%clk
0:02:54.7]} 11... Bxe3 {[%clk 0:02:19]} 12. fxe3 {[%clk 0:02:55.6]} 12... Qb6
{[%clk 0:02:18.4]} 13. Rxf5 {[%clk 0:02:21.1]} 13... Qxb2 {[%clk 0:02:18.2]} 14.
Qd2 {[%clk 0:02:12.7]} 14... Qxa1 {[%clk 0:02:12.8]} 15. Rf1 {[%clk 0:02:12.4]}
15... Rc8 {[%clk 0:02:05.9]} 16. Rc1 {[%clk 0:01:54.2]} 16... Nbd7 {[%clk
0:01:21]} 17. Na3 {[%clk 0:01:52.5]} 17... Qxc1+ {[%clk 0:01:16.4]} 18. Qxc1
{[%clk 0:01:53.4]} 18... Nxd5 {[%clk 0:01:16.6]} 19. Nab1 {[%clk 0:01:50]} 19...
Nxc3 {[%clk 0:01:02]} 20. Nxc3 {[%clk 0:01:50.9]} 20... Rc4 {[%clk 0:01:01.2]}
21. Qd2 {[%clk 0:01:48.7]} 21... Nf6 {[%clk 0:00:46.8]} 22. h3 {[%clk
0:01:38.7]} 22... Rac8 {[%clk 0:00:43.5]} 23. Nd5 {[%clk 0:01:35]} 23... Nxd5
{[%clk 0:00:13.5]} 24. Qxd5 {[%clk 0:01:35.9]} 1-0

[Event "*** SCC Grand Prix: Titled Tuesday Blitz"]
[Site "Chess.com"]
[Date "2020.09.29"]
[Round "6"]
[White "fighter2jz"]
[Black "SRDR8290"]
[Result "1-0"]
[WhiteElo "2646"]
[BlackElo "2466"]
[TimeControl "180+1"]
[EndTime "11:03:41 PDT"]
[Termination "fighter2jz won by resignation"]

1. e4 {[%clk 0:02:52.3]} 1... e6 {[%clk 0:02:59.5]} 2. d4 {[%clk 0:02:47.5]}
2... d5 {[%clk 0:02:59.9]} 3. Nc3 {[%clk 0:02:48]} 3... Bb4 {[%clk 0:02:59]} 4.
e5 {[%clk 0:02:47.6]} 4... c5 {[%clk 0:02:59.5]} 5. a3 {[%clk 0:02:47.2]} 5...
Bxc3+ {[%clk 0:02:59.9]} 6. bxc3 {[%clk 0:02:48.1]} 6... Ne7 {[%clk 0:03:00.2]}
7. Qg4 {[%clk 0:02:47.5]} 7... O-O {[%clk 0:03:00.5]} 8. Bd3 {[%clk 0:02:47.7]}
8... f5 {[%clk 0:03:00.1]} 9. exf6 {[%clk 0:02:46.8]} 9... Rxf6 {[%clk
0:03:00.6]} 10. Bg5 {[%clk 0:02:45]} 10... Nd7 {[%clk 0:02:57]} 11. Qh4 {[%clk
0:02:39.2]} 11... h6 {[%clk 0:02:56.6]} 12. Bxf6 {[%clk 0:02:38.2]} 12... Nxf6
{[%clk 0:02:57.5]} 13. Nf3 {[%clk 0:02:30.1]} 13... c4 {[%clk 0:02:52]} 14. Be2
{[%clk 0:02:29.9]} 14... Qa5 {[%clk 0:02:52.2]} 15. O-O {[%clk 0:02:24.6]} 15...
Qxc3 {[%clk 0:02:52.4]} 16. Ra2 {[%clk 0:01:56.7]} 16... Bd7 {[%clk 0:02:47.1]}
17. Qf4 {[%clk 0:01:54.9]} 17... Nf5 {[%clk 0:02:38.3]} 18. g4 {[%clk
0:01:32.7]} 18... Ne7 {[%clk 0:02:38]} 19. g5 {[%clk 0:01:26.8]} 19... hxg5
{[%clk 0:02:37.5]} 20. Qxg5 {[%clk 0:01:26.1]} 20... Nf5 {[%clk 0:02:34.5]} 21.
Kh1 {[%clk 0:01:20.4]} 21... Nxd4 {[%clk 0:02:15.6]} 22. Rg1 {[%clk 0:01:16.5]}
22... Ne8 {[%clk 0:02:09.7]} 23. Qh5 {[%clk 0:00:30.7]} 23... Nf6 {[%clk
0:01:53]} 24. Qg6 {[%clk 0:00:27.9]} 24... Ne8 {[%clk 0:01:46.8]} 25. Ng5 {[%clk
0:00:21]} 25... Nf5 {[%clk 0:01:47.3]} 26. Qf7+ {[%clk 0:00:17.7]} 26... Kh8
{[%clk 0:01:46.7]} 27. Qxd7 {[%clk 0:00:16.3]} 1-0

[Event "*** SCC Grand Prix: Titled Tuesday Blitz"]
[Site "Chess.com"]
[Date "2020.09.29"]
[Round "6"]
[White "Snowflake"]
[Black "Larina_Marija"]
[Result "1-0"]
[WhiteElo "2475"]
[BlackElo "2187"]
[TimeControl "180+1"]
[EndTime "11:03:46 PDT"]
[Termination "Snowflake won by checkmate"]

1. Nf3 {[%clk 0:02:55.8]} 1... f5 {[%clk 0:02:59.7]} 2. g3 {[%clk 0:02:56.7]}
2... Nf6 {[%clk 0:02:59.5]} 3. Bg2 {[%clk 0:02:57.6]} 3... g6 {[%clk 0:02:59.9]}
4. O-O {[%clk 0:02:58.5]} 4... Bg7 {[%clk 0:03:00.4]} 5. d3 {[%clk 0:02:57.4]}
5... O-O {[%clk 0:02:59.5]} 6. c4 {[%clk 0:02:58.3]} 6... d6 {[%clk 0:02:59.3]}
7. Nc3 {[%clk 0:02:59.2]} 7... h6 {[%clk 0:02:47.3]} 8. Qc2 {[%clk 0:02:48.4]}
8... g5 {[%clk 0:02:44.5]} 9. b4 {[%clk 0:02:48.4]} 9... Qe8 {[%clk 0:02:43.2]}
10. Bb2 {[%clk 0:02:47.1]} 10... c6 {[%clk 0:02:42]} 11. b5 {[%clk 0:02:45]}
11... e5 {[%clk 0:02:39.1]} 12. a4 {[%clk 0:02:39.7]} 12... g4 {[%clk
0:02:29.6]} 13. Nd2 {[%clk 0:02:39.8]} 13... Be6 {[%clk 0:01:49.3]} 14. Rfe1
{[%clk 0:02:25.8]} 14... d5 {[%clk 0:01:48.5]} 15. bxc6 {[%clk 0:02:22.8]} 15...
bxc6 {[%clk 0:01:48.4]} 16. cxd5 {[%clk 0:02:23.7]} 16... cxd5 {[%clk 0:01:48]}
17. Nb5 {[%clk 0:02:24.4]} 17... Na6 {[%clk 0:01:25.1]} 18. Bxe5 {[%clk
0:02:22.5]} 18... Rc8 {[%clk 0:01:21.9]} 19. Qb2 {[%clk 0:02:18]} 19... Qh5
{[%clk 0:00:45.8]} 20. e4 {[%clk 0:02:03.6]} 20... dxe4 {[%clk 0:00:41]} 21.
dxe4 {[%clk 0:02:04.5]} 21... f4 {[%clk 0:00:30.1]} 22. gxf4 {[%clk 0:02:00.2]}
22... g3 {[%clk 0:00:25.6]} 23. hxg3 {[%clk 0:01:55.2]} 23... Ng4 {[%clk
0:00:24]} 24. Bxg7 {[%clk 0:01:55.7]} 24... Qh2+ {[%clk 0:00:23.1]} 25. Kf1
{[%clk 0:01:56.3]} 25... Rfd8 {[%clk 0:00:14.6]} 26. Rac1 {[%clk 0:01:48.6]}
26... Rxd2 {[%clk 0:00:12]} 27. Qxd2 {[%clk 0:01:47.2]} 27... Bc4+ {[%clk
0:00:10.2]} 28. Rxc4 {[%clk 0:01:47.9]} 28... Rxc4 {[%clk 0:00:11]} 29. Ba1
{[%clk 0:01:45.8]} 29... Nc5 {[%clk 0:00:08.9]} 30. Qd5+ {[%clk 0:01:45.7]}
30... Kh7 {[%clk 0:00:08.6]} 31. Qf7# {[%clk 0:01:45.4]} 1-0

[Event "*** SCC Grand Prix: Titled Tuesday Blitz"]
[Site "Chess.com"]
[Date "2020.09.29"]
[Round "6"]
[White "BikingBrian"]
[Black "Kotofeyca"]
[Result "0-1"]
[WhiteElo "2206"]
[BlackElo "2347"]
[TimeControl "180+1"]
[EndTime "11:03:53 PDT"]
[Termination "Kotofeyca won by resignation"]

1. d4 {[%clk 0:03:00.9]} 1... d5 {[%clk 0:02:59.7]} 2. Bf4 {[%clk 0:03:00]} 2...
c6 {[%clk 0:03:00.1]} 3. e3 {[%clk 0:03:00.1]} 3... Nf6 {[%clk 0:02:59.3]} 4. c4
{[%clk 0:03:00.4]} 4... Bg4 {[%clk 0:02:54.4]} 5. Qb3 {[%clk 0:02:59]} 5... Qd7
{[%clk 0:02:53.3]} 6. Nc3 {[%clk 0:02:54.7]} 6... e6 {[%clk 0:02:52.9]} 7. h3
{[%clk 0:02:45.4]} 7... Bh5 {[%clk 0:02:51.8]} 8. g4 {[%clk 0:02:45.7]} 8... Bg6
{[%clk 0:02:51.9]} 9. Nf3 {[%clk 0:02:46]} 9... dxc4 {[%clk 0:02:26.6]} 10. Bxc4
{[%clk 0:02:43.3]} 10... Nd5 {[%clk 0:02:26.6]} 11. Ne5 {[%clk 0:02:38.6]} 11...
Qc8 {[%clk 0:02:20.8]} 12. Nxd5 {[%clk 0:02:23.7]} 12... exd5 {[%clk 0:02:15.8]}
13. Be2 {[%clk 0:02:18.5]} 13... Nd7 {[%clk 0:01:59.8]} 14. Rc1 {[%clk
0:02:13.4]} 14... Nxe5 {[%clk 0:01:55.4]} 15. Bxe5 {[%clk 0:02:13.8]} 15... f6
{[%clk 0:01:50.3]} 16. Bg3 {[%clk 0:02:12.2]} 16... Be7 {[%clk 0:01:49.1]} 17.
Bf3 {[%clk 0:02:12.4]} 17... Qd7 {[%clk 0:01:37.9]} 18. h4 {[%clk 0:02:08.9]}
18... O-O {[%clk 0:01:28.5]} 19. h5 {[%clk 0:02:06.3]} 19... Bf7 {[%clk
0:01:28.5]} 20. O-O {[%clk 0:01:56]} 20... f5 {[%clk 0:01:25.4]} 21. Qd1 {[%clk
0:01:52.1]} 21... fxg4 {[%clk 0:01:18.5]} 22. Bxg4 {[%clk 0:01:51.7]} 22... Be6
{[%clk 0:01:19.4]} 23. Bxe6+ {[%clk 0:01:45.5]} 23... Qxe6 {[%clk 0:01:20.3]}
24. Kh2 {[%clk 0:01:25.3]} 24... Qe4 {[%clk 0:01:13]} 25. Qc2 {[%clk 0:01:19.4]}
25... Qg4 {[%clk 0:01:10.5]} 26. Qd1 {[%clk 0:01:18]} 26... Rf3 {[%clk
0:01:10.4]} 27. Kg2 {[%clk 0:01:15.3]} 27... Raf8 {[%clk 0:01:10]} 28. h6 {[%clk
0:01:06.3]} 28... Bd6 {[%clk 0:01:03.2]} 29. hxg7 {[%clk 0:01:01.9]} 29... Kxg7
{[%clk 0:01:03]} 30. Rh1 {[%clk 0:00:56.7]} 30... Bxg3 {[%clk 0:01:01]} 31. Qd3
{[%clk 0:00:50.1]} 31... Rxf2+ {[%clk 0:00:52.8]} 0-1